OrganisationURI,OrganisationLabel,OrganisationalUnit,TransactionNumber,Invoice Ref.,BeneficiaryName,Expense Type,Purpose,PaymentDate, Amount ,
http://statistics.data.gov.uk/id/local-authority-district/23UB,Cheltenham Borough Council,Income and Expenditure on Investment Properties and Changes in Their Fair Value,14047922,187525,A & E Fire Equipment Limited,R2004-FIE040,R & M of Build Programmed,30/09/2016," 1,602.85 ",
http://statistics.data.gov.uk/id/local-authority-district/23UB,Cheltenham Borough Council,Corporate Management,14047668,2010355,Activist Group Limited (Formerly Eightytwenty Insight LG),R4411-COR001,Consultancy Fees,23/09/2016," 12,049.45 ",
http://statistics.data.gov.uk/id/local-authority-district/23UB,Cheltenham Borough Council,Art Gallery & Museum Repairs & Maintenance,14047285,SOI0132444,AllCoopers Limited,R2705-CUL117,Security Systems,16/09/2016," 1,285.00 ",
http://statistics.data.gov.uk/id/local-authority-district/23UB,Cheltenham Borough Council,Housing Benefit Administration,14047816,66418,Alpha Colour Printers Limited,R4300-HBA001,Printing - Services,30/09/2016," 1,195.00 ",
http://statistics.data.gov.uk/id/local-authority-district/23UB,Cheltenham Borough Council,Registration of Electors,14047222,29292,Alpha Response Print & Mail Limited,R4300-ELE001,Printing - Services,23/09/2016," 7,341.00 ",
http://statistics.data.gov.uk/id/local-authority-district/23UB,Cheltenham Borough Council,Land & Property presale costs,14047329,2016/17974,Alun Griffiths (Contractors) Limited,C1100-CAP401,Construction,16/09/2016," 39,467.75 ",
http://statistics.data.gov.uk/id/local-authority-district/23UB,Cheltenham Borough Council,Land & Property presale costs,14047784,2016/17977,Alun Griffiths (Contractors) Limited,C1100-CAP401,Construction,30/09/2016," 6,835.09 ",
http://statistics.data.gov.uk/id/local-authority-district/23UB,Cheltenham Borough Council,JCS Affordable Housing Capacity Funding,14047185,9697,Ark Housing Consultancy LLP,R4401-HOS100,Services - Fees and Charges,16/09/2016," 2,070.00 ",
http://statistics.data.gov.uk/id/local-authority-district/23UB,Cheltenham Borough Council,Development Control - Applications,14047231,12010,Artful Limited,R4317-DEV001,Non Staff Advertising,30/09/2016," 3,224.00 ",
http://statistics.data.gov.uk/id/local-authority-district/23UB,Cheltenham Borough Council,Environmental Health General,14047186,83619,Atlantic Umbrella Company Limited,R1100-REG001,Agency Staff,09/09/2016, 588.00 ,
http://statistics.data.gov.uk/id/local-authority-district/23UB,Cheltenham Borough Council,Environmental Health General,14047390,83738,Atlantic Umbrella Company Limited,R1100-REG001,Agency Staff,16/09/2016, 602.00 ,
http://statistics.data.gov.uk/id/local-authority-district/23UB,Cheltenham Borough Council,Environmental Health General,14047386,83927,Atlantic Umbrella Company Limited,R1100-REG001,Agency Staff,16/09/2016, 588.00 ,
http://statistics.data.gov.uk/id/local-authority-district/23UB,Cheltenham Borough Council,Joint Core Strategy,14046974,INV306843,Attwaters Jameson Hill Solicitors,R4400-PLP101,Services - Professional Fees,30/09/2016," 9,035.05 ",
http://statistics.data.gov.uk/id/local-authority-district/23UB,Cheltenham Borough Council,Joint Core Strategy,14046974,INV306843,Attwaters Jameson Hill Solicitors,R4400-PLP101,Services - Professional Fees,30/09/2016," (9,035.05)",
http://statistics.data.gov.uk/id/local-authority-district/23UB,Cheltenham Borough Council,Joint Core Strategy,14046974,INV306843,Attwaters Jameson Hill Solicitors,R4400-PLP101,Services - Professional Fees,30/09/2016," 8,475.00 ",
http://statistics.data.gov.uk/id/local-authority-district/23UB,Cheltenham Borough Council,Joint Core Strategy,14046974,INV306843,Attwaters Jameson Hill Solicitors,R4400-PLP101,Services - Professional Fees,30/09/2016, 560.05 ,
http://statistics.data.gov.uk/id/local-authority-district/23UB,Cheltenham Borough Council,Income and Expenditure on Investment Properties and Changes in Their Fair Value,14047478,1169,Beard & Tandy Developments Limited,R2004-FIE040,R & M of Build Programmed,23/09/2016," 11,719.20 ",
http://statistics.data.gov.uk/id/local-authority-district/23UB,Cheltenham Borough Council,Cheltenham Municipal Offices,14047248,1372,BEMS (Controls) Limited T/A BEMS Energy,R4548-ADB101,IT - Cabling and Network,16/09/2016, 940.00 ,
http://statistics.data.gov.uk/id/local-authority-district/23UB,Cheltenham Borough Council,External Improvements,14047552,P4005/5436-1A,Bersche-Rolt Limited,C1107-CAH003,Building Works,30/09/2016," 25,560.25 ",
http://statistics.data.gov.uk/id/local-authority-district/23UB,Cheltenham Borough Council,External Improvements,14047684,P4005/5436-1B,Bersche-Rolt Limited,C1107-CAH003,Building Works,30/09/2016," 15,363.95 ",
http://statistics.data.gov.uk/id/local-authority-district/23UB,Cheltenham Borough Council,External Improvements,14047684,P4005/5436-1B,Bersche-Rolt Limited,C1107-CAH003,Building Works,30/09/2016," 15,363.95 ",
http://statistics.data.gov.uk/id/local-authority-district/23UB,Cheltenham Borough Council,External Improvements,14047684,P4005/5436-1B,Bersche-Rolt Limited,C1107-CAH003,Building Works,30/09/2016," (15,363.95)",
http://statistics.data.gov.uk/id/local-authority-district/23UB,Cheltenham Borough Council,External Improvements,14047553,P4005/5436-1C,Bersche-Rolt Limited,C1107-CAH003,Building Works,30/09/2016," 28,988.75 ",
http://statistics.data.gov.uk/id/local-authority-district/23UB,Cheltenham Borough Council,External Improvements,14047679,P4005/5436-1D,Bersche-Rolt Limited,C1107-CAH003,Building Works,30/09/2016," 14,968.11 ",
http://statistics.data.gov.uk/id/local-authority-district/23UB,Cheltenham Borough Council,External Improvements,14047679,P4005/5436-1D,Bersche-Rolt Limited,C1107-CAH003,Building Works,30/09/2016," (14,968.11)",
http://statistics.data.gov.uk/id/local-authority-district/23UB,Cheltenham Borough Council,External Improvements,14047679,P4005/5436-1D,Bersche-Rolt Limited,C1107-CAH003,Building Works,30/09/2016," 14,968.11 ",
http://statistics.data.gov.uk/id/local-authority-district/23UB,Cheltenham Borough Council,External Improvements,14047680,P4005/5436-1E,Bersche-Rolt Limited,C1107-CAH003,Building Works,30/09/2016," 5,104.21 ",
http://statistics.data.gov.uk/id/local-authority-district/23UB,Cheltenham Borough Council,External Improvements,14047680,P4005/5436-1E,Bersche-Rolt Limited,C1107-CAH003,Building Works,30/09/2016," (5,104.21)",
http://statistics.data.gov.uk/id/local-authority-district/23UB,Cheltenham Borough Council,External Improvements,14047680,P4005/5436-1E,Bersche-Rolt Limited,C1107-CAH003,Building Works,30/09/2016," 5,104.21 ",
http://statistics.data.gov.uk/id/local-authority-district/23UB,Cheltenham Borough Council,External Improvements,14047681,P4005/5436-1F,Bersche-Rolt Limited,C1107-CAH003,Building Works,30/09/2016," 4,056.83 ",
http://statistics.data.gov.uk/id/local-authority-district/23UB,Cheltenham Borough Council,External Improvements,14047681,P4005/5436-1F,Bersche-Rolt Limited,C1107-CAH003,Building Works,30/09/2016," 4,056.83 ",
http://statistics.data.gov.uk/id/local-authority-district/23UB,Cheltenham Borough Council,External Improvements,14047681,P4005/5436-1F,Bersche-Rolt Limited,C1107-CAH003,Building Works,30/09/2016," (4,056.83)",
http://statistics.data.gov.uk/id/local-authority-district/23UB,Cheltenham Borough Council,External Improvements,14047682,P4005/5436-1G,Bersche-Rolt Limited,C1107-CAH003,Building Works,30/09/2016," (4,713.33)",
http://statistics.data.gov.uk/id/local-authority-district/23UB,Cheltenham Borough Council,External Improvements,14047682,P4005/5436-1G,Bersche-Rolt Limited,C1107-CAH003,Building Works,30/09/2016," 4,713.33 ",
http://statistics.data.gov.uk/id/local-authority-district/23UB,Cheltenham Borough Council,External Improvements,14047682,P4005/5436-1G,Bersche-Rolt Limited,C1107-CAH003,Building Works,30/09/2016," 4,713.33 ",
http://statistics.data.gov.uk/id/local-authority-district/23UB,Cheltenham Borough Council,External Improvements,14047683,P4005/5436-1H,Bersche-Rolt Limited,C1107-CAH003,Building Works,30/09/2016," 17,109.69 ",
http://statistics.data.gov.uk/id/local-authority-district/23UB,Cheltenham Borough Council,External Improvements,14047683,P4005/5436-1H,Bersche-Rolt Limited,C1107-CAH003,Building Works,30/09/2016," (17,109.69)",
http://statistics.data.gov.uk/id/local-authority-district/23UB,Cheltenham Borough Council,External Improvements,14047683,P4005/5436-1H,Bersche-Rolt Limited,C1107-CAH003,Building Works,30/09/2016," 17,109.69 ",
http://statistics.data.gov.uk/id/local-authority-district/23UB,Cheltenham Borough Council,External Improvements,14047678,P4005-2357/5502,Bersche-Rolt Limited,C1107-CAH003,Building Works,30/09/2016," (11,097.63)",
http://statistics.data.gov.uk/id/local-authority-district/23UB,Cheltenham Borough Council,External Improvements,14047678,P4005-2357/5502,Bersche-Rolt Limited,C1107-CAH003,Building Works,30/09/2016," 11,097.63 ",
http://statistics.data.gov.uk/id/local-authority-district/23UB,Cheltenham Borough Council,External Improvements,14047678,P4005-2357/5502,Bersche-Rolt Limited,C1107-CAH003,Building Works,30/09/2016," 11,097.63 ",
http://statistics.data.gov.uk/id/local-authority-district/23UB,Cheltenham Borough Council,Treasury Management,14047661,1477067,Bevan Brittan LLP,R4400-COR006,Services - Professional Fees,30/09/2016, 750.00 ,
http://statistics.data.gov.uk/id/local-authority-district/23UB,Cheltenham Borough Council,NNDR Collection,14047290,170013,Bristow & Sutor,R4406-LTC011,Bailiffs Fees,16/09/2016, 531.12 ,
http://statistics.data.gov.uk/id/local-authority-district/23UB,Cheltenham Borough Council,CCTV,14047166,20023558,British Telecommunications plc,R4434-CCT001,CCTV Staff,09/09/2016," 16,490.57 ",
http://statistics.data.gov.uk/id/local-authority-district/23UB,Cheltenham Borough Council,Animal Control,14047677,800314528,Bromsgrove District Council,R4413-REG003,Dog Kennels Fees,23/09/2016, 754.50 ,
http://statistics.data.gov.uk/id/local-authority-district/23UB,Cheltenham Borough Council,Repairs and Maintenance,14046704,Q009 GQ,BT (Business Billing - Durham),R4515-HRA100,Comms - Telephone Call Charges,30/09/2016," 2,541.96 ",
http://statistics.data.gov.uk/id/local-authority-district/23UB,Cheltenham Borough Council,ICT,14047671,Q012 TK,BT (Business Billing - Durham),R4514-SUP005,Comms - Telephone Rental/Service Charges,30/09/2016," 1,004.22 ",
http://statistics.data.gov.uk/id/local-authority-district/23UB,Cheltenham Borough Council,Cheltenham Municipal Offices,14046161,08/267290,Bunzl Cleaning and Hygiene Supplies,R4009-ADB101,Materials - Cleaning Materials,30/09/2016, 798.07 ,
http://statistics.data.gov.uk/id/local-authority-district/23UB,Cheltenham Borough Council,Cheltenham Municipal Offices,14047396,08/271562,Bunzl Cleaning and Hygiene Supplies,R4009-ADB101,Materials - Cleaning Materials,16/09/2016, 536.67 ,
http://statistics.data.gov.uk/id/local-authority-district/23UB,Cheltenham Borough Council,Parks & Gardens Operations,14047454,FLT/64832,C & G Services (Europe) Limited,R1652-OPS001,Training Fees (External),23/09/2016," 1,040.00 ",
http://statistics.data.gov.uk/id/local-authority-district/23UB,Cheltenham Borough Council,Planning Policy,14046985,35312,Carrington West Limited,R1100-PLP001,Agency Staff,23/09/2016," 1,184.00 ",
http://statistics.data.gov.uk/id/local-authority-district/23UB,Cheltenham Borough Council,Planning Policy,14046986,35688,Carrington West Limited,R1100-PLP001,Agency Staff,23/09/2016," 1,184.00 ",
http://statistics.data.gov.uk/id/local-authority-district/23UB,Cheltenham Borough Council,Planning Policy,14046987,36058,Carrington West Limited,R1100-PLP001,Agency Staff,23/09/2016," 1,184.00 ",
http://statistics.data.gov.uk/id/local-authority-district/23UB,Cheltenham Borough Council,Planning Policy,14046988,36422,Carrington West Limited,R1100-PLP001,Agency Staff,23/09/2016," 1,184.00 ",
http://statistics.data.gov.uk/id/local-authority-district/23UB,Cheltenham Borough Council,Planning Policy,14047427,36781,Carrington West Limited,R1100-PLP001,Agency Staff,16/09/2016," 1,184.00 ",
http://statistics.data.gov.uk/id/local-authority-district/23UB,Cheltenham Borough Council,Planning Policy,14047426,37509,Carrington West Limited,R1100-PLP001,Agency Staff,16/09/2016," 1,200.00 ",
http://statistics.data.gov.uk/id/local-authority-district/23UB,Cheltenham Borough Council,Planning Policy,14047705,37866,Carrington West Limited,R1100-PLP001,Agency Staff,23/09/2016," 1,232.00 ",
http://statistics.data.gov.uk/id/local-authority-district/23UB,Cheltenham Borough Council,Planning Policy,14047710,38209,Carrington West Limited,R1100-PLP001,Agency Staff,23/09/2016, 992.00 ,
http://statistics.data.gov.uk/id/local-authority-district/23UB,Cheltenham Borough Council,"Cemetery, Crematorium and Churchyards",14047415,29653,CDK Castings Limited T/A Arkell & Hurcombe,R4011-CCM001,Goods For Resale,30/09/2016, 624.50 ,
http://statistics.data.gov.uk/id/local-authority-district/23UB,Cheltenham Borough Council,Community Welfare Grants,14047439,GRANT CLAIM 15-16 ( CBH),Cheltenham Borough Homes Limited,R6280-GBD001,Grants,16/09/2016," 1,000.00 ",
http://statistics.data.gov.uk/id/local-authority-district/23UB,Cheltenham Borough Council,"Cemetery, Crematorium and Churchyards",14047817,56601,Cheltenham Garden Machinery,R4003-CCM001,Tools & Equipment - R & M,30/09/2016, 567.68 ,
http://statistics.data.gov.uk/id/local-authority-district/23UB,Cheltenham Borough Council,Parks & Gardens Operations,14046461,GRANT CONTRIBURION 18.07.16,Cheltenham in Bloom,R6280-OPS001,Grants,16/09/2016, 626.27 ,
http://statistics.data.gov.uk/id/local-authority-district/23UB,Cheltenham Borough Council,Trees,14047445,CBC/240816,Cheltenham Tree Services Limited,R2070-PLP006,Tree Work,23/09/2016, 550.00 ,
http://statistics.data.gov.uk/id/local-authority-district/23UB,Cheltenham Borough Council,Revenues & Benefits Overheads,14047829,C/RB146924,Civica UK Limited,R4531-LTC101,IT - Purchase of Software,30/09/2016," 1,405.00 ",
http://statistics.data.gov.uk/id/local-authority-district/23UB,Cheltenham Borough Council,"Cemetery, Crematorium and Churchyards",14047159,564171,Comensura Limited,R1100-CCM001,Agency Staff,09/09/2016," 1,522.42 ",
http://statistics.data.gov.uk/id/local-authority-district/23UB,Cheltenham Borough Council,"Cemetery, Crematorium and Churchyards",14047160,564710,Comensura Limited,R1100-CCM001,Agency Staff,09/09/2016," 7,028.83 ",
http://statistics.data.gov.uk/id/local-authority-district/23UB,Cheltenham Borough Council,"Cemetery, Crematorium and Churchyards",14047803,565250,Comensura Limited,R1100-CCM001,Agency Staff,30/09/2016," 1,394.07 ",
http://statistics.data.gov.uk/id/local-authority-district/23UB,Cheltenham Borough Council,Green Waste,14047400,158,Coral Products plc,R4010-RYC002,Materials - Other Materials,16/09/2016, 550.00 ,
http://statistics.data.gov.uk/id/local-authority-district/23UB,Cheltenham Borough Council,Planning Policy,14047805,493,Cotswold Conservation Board,R6280-PLP001,Grants,30/09/2016," 3,774.00 ",
http://statistics.data.gov.uk/id/local-authority-district/23UB,Cheltenham Borough Council,Community Development,14047567,31st August 2016- (24) DHR-KP,REDACTED,R6280-COM001,Grants,23/09/2016," 1,000.00 ",
http://statistics.data.gov.uk/id/local-authority-district/23UB,Cheltenham Borough Council,Urban Design,14047836,7402314659,Dell Corporation Limited,R4000-URB101,Equipment Purchase,30/09/2016, 713.06 ,
http://statistics.data.gov.uk/id/local-authority-district/23UB,Cheltenham Borough Council,Licensing,14047234,A31340,Disclosure & Barring Service,R1601-REG002,CRB Police Checks,23/09/2016, 510.00 ,
http://statistics.data.gov.uk/id/local-authority-district/23UB,Cheltenham Borough Council,Building Control - Fee Earning Work,14047479,10880,District Surveyor Association Limited T/A LABC,R4701-BUC001,Subscriptions,02/09/2016," 2,343.22 ",
http://statistics.data.gov.uk/id/local-authority-district/23UB,Cheltenham Borough Council,Pittville Park Play Area,14047879,90121552 AV2,Eibe Play Ltd,C4000-CAP125,Acquisition of Equipment,30/09/2016," 17,364.17 ",
http://statistics.data.gov.uk/id/local-authority-district/23UB,Cheltenham Borough Council,Pittville Park Play Area,14047879,90121552 AV2,Eibe Play Ltd,C4000-CAP125,Acquisition of Equipment,30/09/2016," (17,364.17)",
http://statistics.data.gov.uk/id/local-authority-district/23UB,Cheltenham Borough Council,Pittville Park Play Area,14047879,90121552 AV2,Eibe Play Ltd,C4000-CAP125,Acquisition of Equipment,30/09/2016," 17,364.17 ",
http://statistics.data.gov.uk/id/local-authority-district/23UB,Cheltenham Borough Council,Pittville Park Play Area,14047393,90121552 EQ2,Eibe Play Ltd,C4000-CAP125,Acquisition of Equipment,23/09/2016," 52,956.32 ",
http://statistics.data.gov.uk/id/local-authority-district/23UB,Cheltenham Borough Council,Parks & Gardens Operations,14047689,90121638,Eibe Play Ltd,R2075-OPS001,Grounds Maintenance - Contract,23/09/2016," 8,362.00 ",
http://statistics.data.gov.uk/id/local-authority-district/23UB,Cheltenham Borough Council,Parks & Gardens Operations,14047689,90121638,Eibe Play Ltd,R2075-OPS001,Grounds Maintenance - Contract,23/09/2016," (8,362.00)",
http://statistics.data.gov.uk/id/local-authority-district/23UB,Cheltenham Borough Council,Parks & Gardens Operations,14047689,90121638,Eibe Play Ltd,R2075-OPS001,Grounds Maintenance - Contract,23/09/2016," 8,362.00 ",
http://statistics.data.gov.uk/id/local-authority-district/23UB,Cheltenham Borough Council,Parks & Gardens Operations,14047688,90121639,Eibe Play Ltd,R2075-OPS001,Grounds Maintenance - Contract,23/09/2016," 5,400.00 ",
http://statistics.data.gov.uk/id/local-authority-district/23UB,Cheltenham Borough Council,Parks & Gardens Operations,14047688,90121639,Eibe Play Ltd,R2075-OPS001,Grounds Maintenance - Contract,23/09/2016," 5,400.00 ",
http://statistics.data.gov.uk/id/local-authority-district/23UB,Cheltenham Borough Council,Parks & Gardens Operations,14047688,90121639,Eibe Play Ltd,R2075-OPS001,Grounds Maintenance - Contract,23/09/2016," (5,400.00)",
http://statistics.data.gov.uk/id/local-authority-district/23UB,Cheltenham Borough Council,Recreation Centre Repairs & Maintenance,14047289,301267/7/2016,Ener-G Combined Power (South) Limited,R2100-REC111,Electricity,16/09/2016," 2,795.89 ",
http://statistics.data.gov.uk/id/local-authority-district/23UB,Cheltenham Borough Council,Recreation Centre Repairs & Maintenance,14047529,301267/8/2016,Ener-G Combined Power (South) Limited,R2100-REC111,Electricity,30/09/2016," 2,868.99 ",
http://statistics.data.gov.uk/id/local-authority-district/23UB,Cheltenham Borough Council,Joint Core Strategy,14047708,gct247-18,Enfusion Limited,R4400-PLP101,Services - Professional Fees,23/09/2016," 3,500.00 ",
http://statistics.data.gov.uk/id/local-authority-district/23UB,Cheltenham Borough Council,Neighbourhood works,14047739,WM007343,English Landscapes Limited t/a The Landscape Group,C1107-CAH005,Building Works,30/09/2016," 48,623.32 ",
http://statistics.data.gov.uk/id/local-authority-district/23UB,Cheltenham Borough Council,Neighbourhood works,14047740,WM007344,English Landscapes Limited t/a The Landscape Group,C1107-CAH005,Building Works,30/09/2016," 9,428.86 ",
http://statistics.data.gov.uk/id/local-authority-district/23UB,Cheltenham Borough Council,Asbestos Management,14047148,5367,Environmental Management Solutions Limited,C1107-CAH012,Building Works,02/09/2016," 17,987.50 ",
http://statistics.data.gov.uk/id/local-authority-district/23UB,Cheltenham Borough Council,"Cemetery, Crematorium and Churchyards",14047616,27227,Ermin Plant (Hire & Services) Limited,R4000-CCM001,Equipment Purchase,30/09/2016, 654.60 ,
http://statistics.data.gov.uk/id/local-authority-district/23UB,Cheltenham Borough Council,Recreation Centre Repairs & Maintenance,14047732,710/404,ESG Pool Ventilation Limited,R2080-REC111,Mechanical Services,30/09/2016, 679.00 ,
http://statistics.data.gov.uk/id/local-authority-district/23UB,Cheltenham Borough Council,Car Parks - Off Street Operations,14047183,61528,Eurolink Security Installations Group Limited,R2705-CPK001,Security Systems,09/09/2016," 1,050.00 ",
http://statistics.data.gov.uk/id/local-authority-district/23UB,Cheltenham Borough Council,Car Parks - Off Street Operations,14047184,61532,Eurolink Security Installations Group Limited,R2705-CPK001,Security Systems,09/09/2016," 1,050.00 ",
http://statistics.data.gov.uk/id/local-authority-district/23UB,Cheltenham Borough Council,Recreation Centre Repairs & Maintenance,14047554,8994,F T Leisure Limited,R2083-REC111,R&M of Build - Routine,30/09/2016," 1,200.00 ",
http://statistics.data.gov.uk/id/local-authority-district/23UB,Cheltenham Borough Council,Civic Events,14047401,38585,Fosters Rooms Limited,R4401-DRM012,Services - Fees and Charges,16/09/2016, 754.00 ,
http://statistics.data.gov.uk/id/local-authority-district/23UB,Cheltenham Borough Council,Miscellaneous Works,14047775,GP15/020262,G Purchase Construction Limited,C1107-CAH013,Building Works,30/09/2016," 37,443.24 ",
http://statistics.data.gov.uk/id/local-authority-district/23UB,Cheltenham Borough Council,Miscellaneous Works,14047783,GP15/020263,G Purchase Construction Limited,C1107-CAH013,Building Works,30/09/2016," 3,632.35 ",
http://statistics.data.gov.uk/id/local-authority-district/23UB,Cheltenham Borough Council,Development costs - Swindon Road,14047463,G/011635,Gage-Tupper & Associates Limited,C1107-CAH050,Building Works,16/09/2016," 1,310.00 ",
http://statistics.data.gov.uk/id/local-authority-district/23UB,Cheltenham Borough Council,Trees,14047673,247,Gaskins Treework Specialists,R2070-PLP006,Tree Work,23/09/2016," 1,780.00 ",
http://statistics.data.gov.uk/id/local-authority-district/23UB,Cheltenham Borough Council,Cheltenham Business Partnership,14047826,TC51,Georgia Smith t/a Town Crafting,R4411-HLD130,Consultancy Fees,30/09/2016," 9,765.00 ",
http://statistics.data.gov.uk/id/local-authority-district/23UB,Cheltenham Borough Council,Reception/Customer Services,14047926,662,Get Media,R4317-SUP008,Non Staff Advertising,30/09/2016," 1,843.60 ",
http://statistics.data.gov.uk/id/local-authority-district/23UB,Cheltenham Borough Council,Economic Development,14047726,41,GFirst LEP CIC,R4545-ECD001,IT - Interface Development,23/09/2016," 2,000.00 ",
http://statistics.data.gov.uk/id/local-authority-district/23UB,Cheltenham Borough Council,Household Waste,14047465,1800411556,Gloucestershire County Council,R4401-WST001,Services - Fees and Charges,16/09/2016," 7,228.31 ",
http://statistics.data.gov.uk/id/local-authority-district/23UB,Cheltenham Borough Council,Pensions Backfunding,14047623,800006871,GLOUCESTERSHIRE COUNTY COUNCIL (LGPS ONLY),R1301-SUP038,Enhanced Pension,23/09/2016," 16,821.24 ",
http://statistics.data.gov.uk/id/local-authority-district/23UB,Cheltenham Borough Council,Parks & Gardens Operations,14047691,3458,Greenway Partnership Limited T/A GPL Building Services,R2075-OPS001,Grounds Maintenance - Contract,23/09/2016," 3,315.00 ",
http://statistics.data.gov.uk/id/local-authority-district/23UB,Cheltenham Borough Council,Parks & Gardens Operations,14047691,3458,Greenway Partnership Limited T/A GPL Building Services,R2075-OPS001,Grounds Maintenance - Contract,23/09/2016," 3,315.00 ",
http://statistics.data.gov.uk/id/local-authority-district/23UB,Cheltenham Borough Council,Parks & Gardens Operations,14047691,3458,Greenway Partnership Limited T/A GPL Building Services,R2075-OPS001,Grounds Maintenance - Contract,23/09/2016," (3,315.00)",
http://statistics.data.gov.uk/id/local-authority-district/23UB,Cheltenham Borough Council,Cheltenham Municipal Offices,14047545,3467,Greenway Partnership Limited T/A GPL Building Services,R2079-ADB101,Sanitary and Plumbing,30/09/2016, 607.50 ,
http://statistics.data.gov.uk/id/local-authority-district/23UB,Cheltenham Borough Council,Parks & Gardens Operations,14047686,3475,Greenway Partnership Limited T/A GPL Building Services,R2007-OPS001,R & M of Plant Contracts,23/09/2016," 3,458.27 ",
http://statistics.data.gov.uk/id/local-authority-district/23UB,Cheltenham Borough Council,Cheltenham Depot,14047806,3479,Greenway Partnership Limited T/A GPL Building Services,R2043-ADB103,R & M of Build Drain Cleaning,30/09/2016," 1,234.00 ",
http://statistics.data.gov.uk/id/local-authority-district/23UB,Cheltenham Borough Council,Cheltenham Depot,14047787,3482,Greenway Partnership Limited T/A GPL Building Services,R2043-ADB103,R & M of Build Drain Cleaning,30/09/2016, 527.62 ,
http://statistics.data.gov.uk/id/local-authority-district/23UB,Cheltenham Borough Council,Cheltenham Depot,14047788,3483,Greenway Partnership Limited T/A GPL Building Services,R2043-ADB103,R & M of Build Drain Cleaning,30/09/2016," 1,310.80 ",
http://statistics.data.gov.uk/id/local-authority-district/23UB,Cheltenham Borough Council,Car Parks - Off Street R&M,14047757,3502,Greenway Partnership Limited T/A GPL Building Services,R2043-CPK101,R & M of Build Drain Cleaning,30/09/2016, 618.80 ,
http://statistics.data.gov.uk/id/local-authority-district/23UB,Cheltenham Borough Council,Flood Risk Management,14047469,47066,Halcrow Group Limited,R5001-FRM101,TPP - Major External Contractors,16/09/2016," 2,975.00 ",
http://statistics.data.gov.uk/id/local-authority-district/23UB,Cheltenham Borough Council,Development costs - Garage Sites 2b,14047675,100785,REDACTED,C1107-CAH054,Building Works,23/09/2016, 782.00 ,
http://statistics.data.gov.uk/id/local-authority-district/23UB,Cheltenham Borough Council,Art Gallery & Museum Repairs & Maintenance,14047592,16141,Hellion Environmental Limited,R2080-CUL117,Mechanical Services,30/09/2016, 520.84 ,
http://statistics.data.gov.uk/id/local-authority-district/23UB,Cheltenham Borough Council,Recreation Centre Repairs & Maintenance,14047606,16155,Hellion Environmental Limited,R2080-REC111,Mechanical Services,30/09/2016, 545.63 ,
http://statistics.data.gov.uk/id/local-authority-district/23UB,Cheltenham Borough Council,Pittville Pump Room Repairs & Maintenance,14047643,16184,Hellion Environmental Limited,R2008-CUL113,R & M of Build - Reactive Repairs,30/09/2016, 845.00 ,
http://statistics.data.gov.uk/id/local-authority-district/23UB,Cheltenham Borough Council,Pittville Pump Room Repairs & Maintenance,14047643,16184,Hellion Environmental Limited,R2008-CUL113,R & M of Build - Reactive Repairs,30/09/2016," 1,149.70 ",
http://statistics.data.gov.uk/id/local-authority-district/23UB,Cheltenham Borough Council,Prince of Wales Stadium Repairs & Maintenance,14047646,16185,Hellion Environmental Limited,R2008-REC112,R & M of Build - Reactive Repairs,30/09/2016, 680.00 ,
http://statistics.data.gov.uk/id/local-authority-district/23UB,Cheltenham Borough Council,Prince of Wales Stadium Repairs & Maintenance,14047646,16185,Hellion Environmental Limited,R2008-REC112,R & M of Build - Reactive Repairs,30/09/2016, 579.74 ,
http://statistics.data.gov.uk/id/local-authority-district/23UB,Cheltenham Borough Council,Income and Expenditure on Investment Properties and Changes in Their Fair Value,14047660,16188,Hellion Environmental Limited,R2004-FIE040,R & M of Build Programmed,30/09/2016, 625.00 ,
http://statistics.data.gov.uk/id/local-authority-district/23UB,Cheltenham Borough Council,Arle Road Nursery Repairs Maintenance,14047645,16191,Hellion Environmental Limited,R2004-OPS111,R & M of Build Programmed,30/09/2016," 1,759.39 ",
http://statistics.data.gov.uk/id/local-authority-district/23UB,Cheltenham Borough Council,Arle Road Nursery Repairs Maintenance,14047645,16191,Hellion Environmental Limited,R2004-OPS111,R & M of Build Programmed,30/09/2016, 690.00 ,
http://statistics.data.gov.uk/id/local-authority-district/23UB,Cheltenham Borough Council,Corporate Policy Making,14046909,1607066,Hitec (Laboratories) Limited,R4400-COR003,Services - Professional Fees,02/09/2016," 3,255.00 ",
http://statistics.data.gov.uk/id/local-authority-district/23UB,Cheltenham Borough Council,General Fund Balance Sheet,14047194,CISDEDUCT0608-050916,HMRC (CBC - CIS),B6220-BAL100,CIS Deductions Control (reallocated),09/09/2016," 1,077.44 ",
http://statistics.data.gov.uk/id/local-authority-district/23UB,Cheltenham Borough Council,Repairs and Maintenance,14047395,150312AA5,Ian Williams Limited,R2060-HRA100,R & M of Build Cyclical Painting Communal Areas,16/09/2016," (22,095.35)",
http://statistics.data.gov.uk/id/local-authority-district/23UB,Cheltenham Borough Council,Repairs and Maintenance,14047395,150312AA5,Ian Williams Limited,R2060-HRA100,R & M of Build Cyclical Painting Communal Areas,16/09/2016," 22,095.35 ",
http://statistics.data.gov.uk/id/local-authority-district/23UB,Cheltenham Borough Council,Repairs and Maintenance,14047395,150312AA5,Ian Williams Limited,R2060-HRA100,R & M of Build Cyclical Painting Communal Areas,16/09/2016," 22,095.35 ",
http://statistics.data.gov.uk/id/local-authority-district/23UB,Cheltenham Borough Council,Licensing,14047539,EVE15175,Institute of Licensing Events Limited,R1652-REG002,Training Fees (External),30/09/2016, 616.50 ,
http://statistics.data.gov.uk/id/local-authority-district/23UB,Cheltenham Borough Council,Licensing,14047422,EVE15175,Institute of Licensing Limited,R1652-REG002,Training Fees (External),16/09/2016, 739.80 ,
http://statistics.data.gov.uk/id/local-authority-district/23UB,Cheltenham Borough Council,Development costs - Swindon Road,14047165,006 IN022474,J Harper & Sons (Leominster) Limited,C1107-CAH050,Building Works,02/09/2016," 124,478.48 ",
http://statistics.data.gov.uk/id/local-authority-district/23UB,Cheltenham Borough Council,Development costs - Garage Sites 2a,14047196,010 IN022489,J Harper & Sons (Leominster) Limited,C1107-CAH052,Building Works,09/09/2016," 210,583.08 ",
http://statistics.data.gov.uk/id/local-authority-district/23UB,Cheltenham Borough Council,Development costs - Garage Sites 2a,14047196,010 IN022489,J Harper & Sons (Leominster) Limited,C1107-CAH052,Building Works,09/09/2016," (210,583.08)",
http://statistics.data.gov.uk/id/local-authority-district/23UB,Cheltenham Borough Council,Development costs - Garage Sites 2a,14047196,010 IN022489,J Harper & Sons (Leominster) Limited,C1107-CAH052,Building Works,09/09/2016," 210,605.51 ",
http://statistics.data.gov.uk/id/local-authority-district/23UB,Cheltenham Borough Council,Development costs - Garage Sites 2a,14047278,VAT  010 IN022489,J Harper & Sons (Leominster) Limited,C1107-CAH052,Building Works,16/09/2016," 6,910.00 ",
http://statistics.data.gov.uk/id/local-authority-district/23UB,Cheltenham Borough Council,Development costs - Garage Sites 2a,14047278,VAT  010 IN022489,J Harper & Sons (Leominster) Limited,C1107-CAH052,Building Works,16/09/2016," (6,910.00)",
http://statistics.data.gov.uk/id/local-authority-district/23UB,Cheltenham Borough Council,Sports & Open Spaces Operations,14047394,16/030,J P North (Farmer),R2071-OPS002,Open Spaces and Grassed Areas,16/09/2016," 1,300.00 ",
http://statistics.data.gov.uk/id/local-authority-district/23UB,Cheltenham Borough Council,Sports & Open Spaces Operations,14047394,16/030,J P North (Farmer),R2071-OPS002,Open Spaces and Grassed Areas,16/09/2016, 600.00 ,
http://statistics.data.gov.uk/id/local-authority-district/23UB,Cheltenham Borough Council,Sports & Open Spaces Operations,14047860,2078,Jayson R C Bayliss,R2075-OPS002,Grounds Maintenance - Contract,30/09/2016," 1,925.00 ",
http://statistics.data.gov.uk/id/local-authority-district/23UB,Cheltenham Borough Council,Sports & Open Spaces Operations,14047860,2078,Jayson R C Bayliss,R2075-OPS002,Grounds Maintenance - Contract,30/09/2016," 1,055.00 ",
http://statistics.data.gov.uk/id/local-authority-district/23UB,Cheltenham Borough Council,Sports & Open Spaces Operations,14047860,2078,Jayson R C Bayliss,R2075-OPS002,Grounds Maintenance - Contract,30/09/2016," (1,925.00)",
http://statistics.data.gov.uk/id/local-authority-district/23UB,Cheltenham Borough Council,Sports & Open Spaces Operations,14047860,2078,Jayson R C Bayliss,R2075-OPS002,Grounds Maintenance - Contract,30/09/2016, 870.00 ,
http://statistics.data.gov.uk/id/local-authority-district/23UB,Cheltenham Borough Council,Parks & Gardens Operations,14047859,277,Jayson R C Bayliss,R2500-OPS001,Fixtures and Fittings - Purchases,30/09/2016," 1,280.00 ",
http://statistics.data.gov.uk/id/local-authority-district/23UB,Cheltenham Borough Council,Parks & Gardens Operations,14047859,277,Jayson R C Bayliss,R2075-OPS001,Grounds Maintenance - Contract,30/09/2016, 975.00 ,
http://statistics.data.gov.uk/id/local-authority-district/23UB,Cheltenham Borough Council,Parks & Gardens Operations,14047859,277,Jayson R C Bayliss,R2500-OPS001,Fixtures and Fittings - Purchases,30/09/2016," (1,280.00)",
http://statistics.data.gov.uk/id/local-authority-district/23UB,Cheltenham Borough Council,Parks & Gardens Operations,14047859,277,Jayson R C Bayliss,R2500-OPS001,Fixtures and Fittings - Purchases,30/09/2016, 505.00 ,
http://statistics.data.gov.uk/id/local-authority-district/23UB,Cheltenham Borough Council,Parks & Gardens Operations,14047859,277,Jayson R C Bayliss,R2500-OPS001,Fixtures and Fittings - Purchases,30/09/2016, 775.00 ,
http://statistics.data.gov.uk/id/local-authority-district/23UB,Cheltenham Borough Council,Parks & Gardens Operations,14047859,277,Jayson R C Bayliss,R2075-OPS001,Grounds Maintenance - Contract,30/09/2016, (975.00),
http://statistics.data.gov.uk/id/local-authority-district/23UB,Cheltenham Borough Council,Parks & Gardens Operations,14047859,277,Jayson R C Bayliss,R2075-OPS001,Grounds Maintenance - Contract,30/09/2016, 975.00 ,
http://statistics.data.gov.uk/id/local-authority-district/23UB,Cheltenham Borough Council,Development costs - Garage Sites 2c,14047672,823870a,JMP Consultants Limited,C1107-CAH055,Building Works,30/09/2016, 961.05 ,
http://statistics.data.gov.uk/id/local-authority-district/23UB,Cheltenham Borough Council,Repairs and Maintenance,14047782,CSD1987911,John Gillman & Sons (Electrical) Limited (Gillmans Appliance),R4001-HRA100,Tools & Equipment - Hire,30/09/2016, 725.00 ,
http://statistics.data.gov.uk/id/local-authority-district/23UB,Cheltenham Borough Council,Development costs - Whaddon Road,14047402,2046,John S Doody FRICS,C1107-CAH056,Building Works,16/09/2016, 750.00 ,
http://statistics.data.gov.uk/id/local-authority-district/23UB,Cheltenham Borough Council,Car Parks - Off Street Operations,14046648,inv-0516,JS Security Limited,R2705-CPK001,Security Systems,09/09/2016, 868.00 ,
http://statistics.data.gov.uk/id/local-authority-district/23UB,Cheltenham Borough Council,Car Parks - Off Street Operations,14047200,INV-0545,JS Security Limited,R2705-CPK001,Security Systems,16/09/2016," 1,848.00 ",
http://statistics.data.gov.uk/id/local-authority-district/23UB,Cheltenham Borough Council,Cheltenham Depot,14047213,INV-0566,JS Security Limited,R2705-ADB103,Security Systems,16/09/2016, 651.00 ,
http://statistics.data.gov.uk/id/local-authority-district/23UB,Cheltenham Borough Council,Tourist/Visitor Information Centre,14047466,CBC02,Kelly Ballard,R4400-TOU002,Services - Professional Fees,16/09/2016," 3,520.85 ",
http://statistics.data.gov.uk/id/local-authority-district/23UB,Cheltenham Borough Council,Sports & Open Spaces Repairs & Maintenance,14047751,30945,King Builders Gloucester Limited,R2004-OPS122,R & M of Build Programmed,30/09/2016," 3,745.00 ",
http://statistics.data.gov.uk/id/local-authority-district/23UB,Cheltenham Borough Council,New Heating Installations,14047714,1184077,Liberty Gas Group,C1107-CAH009,Building Works,30/09/2016," 3,600.91 ",
http://statistics.data.gov.uk/id/local-authority-district/23UB,Cheltenham Borough Council,Repairs and Maintenance,14047715,1184078,Liberty Gas Group,R2016-HRA100,R & M of Build Void Repairs,23/09/2016," 1,133.45 ",
http://statistics.data.gov.uk/id/local-authority-district/23UB,Cheltenham Borough Council,Repairs and Maintenance,14047715,1184078,Liberty Gas Group,R2040-HRA100,R & M of Build Central Heating,23/09/2016," 37,472.79 ",
http://statistics.data.gov.uk/id/local-authority-district/23UB,Cheltenham Borough Council,ICT,14047818,16000676,LinchPin Networks Limited,R4548-SUP005,IT - Cabling and Network,30/09/2016," 1,599.50 ",
http://statistics.data.gov.uk/id/local-authority-district/23UB,Cheltenham Borough Council,ICT,14047233,16000682,LinchPin Networks Limited,R4548-SUP005,IT - Cabling and Network,16/09/2016," 1,599.50 ",
http://statistics.data.gov.uk/id/local-authority-district/23UB,Cheltenham Borough Council,ICT,14047709,16000704,LinchPin Networks Limited,R4548-SUP005,IT - Cabling and Network,23/09/2016," 1,599.50 ",
http://statistics.data.gov.uk/id/local-authority-district/23UB,Cheltenham Borough Council,Twinning Expenses,14045817,14702,Marchants Coaches Limited,R4401-DRM011,Services - Fees and Charges,09/09/2016, 560.00 ,
http://statistics.data.gov.uk/id/local-authority-district/23UB,Cheltenham Borough Council,Twinning Expenses,14046144,14934,Marchants Coaches Limited,R4401-DRM011,Services - Fees and Charges,09/09/2016," 1,680.00 ",
http://statistics.data.gov.uk/id/local-authority-district/23UB,Cheltenham Borough Council,Window & Door Renewals,14047470,FT_Inv00011414,Masterdor Limited,C1107-CAH017,Building Works,16/09/2016," 15,842.48 ",
http://statistics.data.gov.uk/id/local-authority-district/23UB,Cheltenham Borough Council,Window & Door Renewals,14047464,FT_Inv00011776,Masterdor Limited,C1107-CAH017,Building Works,16/09/2016," 31,814.91 ",
http://statistics.data.gov.uk/id/local-authority-district/23UB,Cheltenham Borough Council,Trees,14047717,1667,Meadowside Tree Care,R2070-PLP006,Tree Work,23/09/2016, 520.00 ,
http://statistics.data.gov.uk/id/local-authority-district/23UB,Cheltenham Borough Council,Repairs and Maintenance,14047533,6230001/8921,Mears Home Improvements (Business Account),R2008-HRA100,R & M of Build - Reactive Repairs,30/09/2016," 2,700.00 ",
http://statistics.data.gov.uk/id/local-authority-district/23UB,Cheltenham Borough Council,Repairs and Maintenance,14047534,6230001/8922,Mears Home Improvements (Business Account),R2008-HRA100,R & M of Build - Reactive Repairs,30/09/2016, 921.50 ,
http://statistics.data.gov.uk/id/local-authority-district/23UB,Cheltenham Borough Council,Repairs and Maintenance,14047536,6230001/9087,Mears Home Improvements (Business Account),R2008-HRA100,R & M of Build - Reactive Repairs,30/09/2016, 588.00 ,
http://statistics.data.gov.uk/id/local-authority-district/23UB,Cheltenham Borough Council,Repairs and Maintenance,14047650,6230001/9095,Mears Home Improvements (Business Account),R2083-HRA100,R&M of Build - Routine,30/09/2016, 828.09 ,
http://statistics.data.gov.uk/id/local-authority-district/23UB,Cheltenham Borough Council,Repairs and Maintenance,14047538,6230001/9096,Mears Home Improvements (Business Account),R2008-HRA100,R & M of Build - Reactive Repairs,30/09/2016, 800.00 ,
http://statistics.data.gov.uk/id/local-authority-district/23UB,Cheltenham Borough Council,Adaptations for the Disabled (CBC),14047273,REDACTED,Mears Home Improvements (Client Account),C1107-CAH028,Building Works,16/09/2016," 2,760.00 ",
http://statistics.data.gov.uk/id/local-authority-district/23UB,Cheltenham Borough Council,Sports & Open Spaces Operations,14047447,259596,Medway Galvanising Company Limited,R4000-OPS002,Equipment Purchase,16/09/2016, 814.58 ,
http://statistics.data.gov.uk/id/local-authority-district/23UB,Cheltenham Borough Council,Play areas (Section 106),14047446,259678,Medway Galvanising Company Limited,C4000-CAP101,Acquisition of Equipment,16/09/2016, 814.58 ,
http://statistics.data.gov.uk/id/local-authority-district/23UB,Cheltenham Borough Council,Income and Expenditure on Investment Properties and Changes in Their Fair Value,14047282,5822/91259198,Mitie Pest Control Limited,R2008-FIE040,R & M of Build - Reactive Repairs,16/09/2016," 4,788.00 ",
http://statistics.data.gov.uk/id/local-authority-district/23UB,Cheltenham Borough Council,Repairs and Maintenance,14047701,27270,Morgan Lambert Limited,R2040-HRA100,R & M of Build Central Heating,23/09/2016, 572.00 ,
http://statistics.data.gov.uk/id/local-authority-district/23UB,Cheltenham Borough Council,"Cemetery, Crematorium and Churchyards",14047780,90916,Mr Clarke-Duguid (General Builder),R2076-CCM001,Grounds Maintenance - Non Contract,30/09/2016," 1,965.00 ",
http://statistics.data.gov.uk/id/local-authority-district/23UB,Cheltenham Borough Council,"Cemetery, Crematorium and Churchyards",14047780,90916,Mr Clarke-Duguid (General Builder),R2076-CCM001,Grounds Maintenance - Non Contract,30/09/2016," (1,965.00)",
http://statistics.data.gov.uk/id/local-authority-district/23UB,Cheltenham Borough Council,"Cemetery, Crematorium and Churchyards",14047780,90916,Mr Clarke-Duguid (General Builder),R2076-CCM001,Grounds Maintenance - Non Contract,30/09/2016," 1,500.00 ",
http://statistics.data.gov.uk/id/local-authority-district/23UB,Cheltenham Borough Council,"Cemetery, Crematorium and Churchyards",14047443,160816A,Mr Clarke-Duguid (General Builder),R2076-CCM001,Grounds Maintenance - Non Contract,16/09/2016, 540.00 ,
http://statistics.data.gov.uk/id/local-authority-district/23UB,Cheltenham Borough Council,"Cemetery, Crematorium and Churchyards",14047443,160816A,Mr Clarke-Duguid (General Builder),R2076-CCM001,Grounds Maintenance - Non Contract,16/09/2016," 1,200.00 ",
http://statistics.data.gov.uk/id/local-authority-district/23UB,Cheltenham Borough Council,"Cemetery, Crematorium and Churchyards",14047456,310816,Mr J Sureda,R4401-CCM001,Services - Fees and Charges,16/09/2016, 806.62 ,
http://statistics.data.gov.uk/id/local-authority-district/23UB,Cheltenham Borough Council,Window & Door Renewals,14047406,16080176,Nationwide Windows Limited,C1107-CAH017,Building Works,16/09/2016," 53,448.64 ",
http://statistics.data.gov.uk/id/local-authority-district/23UB,Cheltenham Borough Council,Window & Door Renewals,14047405,16080177,Nationwide Windows Limited,C1107-CAH017,Building Works,16/09/2016," 151,610.36 ",
http://statistics.data.gov.uk/id/local-authority-district/23UB,Cheltenham Borough Council,Repairs and Maintenance,14047798,16090108,Nationwide Windows Limited,R2008-HRA100,R & M of Build - Reactive Repairs,30/09/2016," 63,263.73 ",
http://statistics.data.gov.uk/id/local-authority-district/23UB,Cheltenham Borough Council,Community Welfare Grants,14047434,GRANT CLAIM APRIL-JULY 16,Oakley Neighbourhood Project,R6280-GBD001,Grants,16/09/2016," 1,418.56 ",
http://statistics.data.gov.uk/id/local-authority-district/23UB,Cheltenham Borough Council,War Memorials,14047417,1586,Odgers Conservation Consultants Limited,R4400-CUL002,Services - Professional Fees,16/09/2016," 5,479.00 ",
http://statistics.data.gov.uk/id/local-authority-district/23UB,Cheltenham Borough Council,"Cemetery, Crematorium and Churchyards",14047419,B8857,Odlings Limited T/A The Columbaria Company,R4011-CCM001,Goods For Resale,30/09/2016," 14,720.00 ",
http://statistics.data.gov.uk/id/local-authority-district/23UB,Cheltenham Borough Council,Prince of Wales Stadium Repairs & Maintenance,14047659,6152,Outdoor High Light Limited,R2004-REC112,R & M of Build Programmed,30/09/2016," 5,544.16 ",
http://statistics.data.gov.uk/id/local-authority-district/23UB,Cheltenham Borough Council,Car Parks - Off Street Operations,14047210,UK90310,Parkeon Limited,R4401-CPK001,Services - Fees and Charges,16/09/2016," 2,378.20 ",
http://statistics.data.gov.uk/id/local-authority-district/23UB,Cheltenham Borough Council,Crematorium Scheme: New Build,14047522,41358,Pick Everard,C1005-CAP601,Surveyors Fees,23/09/2016," 18,502.56 ",
http://statistics.data.gov.uk/id/local-authority-district/23UB,Cheltenham Borough Council,Development costs - Swindon Road,14047429,16-5856 AC,PMP CONSULTANTS LIMITED,C1107-CAH050,Building Works,30/09/2016, 650.00 ,
http://statistics.data.gov.uk/id/local-authority-district/23UB,Cheltenham Borough Council,Disabled Facility Grants,14047931,REDACTED,Premiere Healthcare Limited,C5000-CAP221,Grants,30/09/2016," 1,369.00 ",
http://statistics.data.gov.uk/id/local-authority-district/23UB,Cheltenham Borough Council,Development costs - Garage Sites 2c,14047005,11211,Quattro Design Architects Limited,C1107-CAH055,Building Works,09/09/2016," 2,700.00 ",
http://statistics.data.gov.uk/id/local-authority-district/23UB,Cheltenham Borough Council,Development costs - Garage Sites 2c,14047164,11253,Quattro Design Architects Limited,C1107-CAH055,Building Works,09/09/2016," 1,821.00 ",
http://statistics.data.gov.uk/id/local-authority-district/23UB,Cheltenham Borough Council,Development costs - Garage Sites 2c,14047449,11266,Quattro Design Architects Limited,C1107-CAH055,Building Works,16/09/2016," 3,825.00 ",
http://statistics.data.gov.uk/id/local-authority-district/23UB,Cheltenham Borough Council,Development costs - Garage Sites 2c,14047450,11348,Quattro Design Architects Limited,C1107-CAH055,Building Works,16/09/2016," 1,275.00 ",
http://statistics.data.gov.uk/id/local-authority-district/23UB,Cheltenham Borough Council,Development costs - Garage Sites 2c,14047452,11410,Quattro Design Architects Limited,C1107-CAH055,Building Works,16/09/2016, 900.00 ,
http://statistics.data.gov.uk/id/local-authority-district/23UB,Cheltenham Borough Council,Parks & Gardens Operations,14047220,OP/I146892,RIBA Enterprises Limited,R4700-OPS001,Grants,30/09/2016, 684.00 ,
http://statistics.data.gov.uk/id/local-authority-district/23UB,Cheltenham Borough Council,Urban Design,14047220,OP/I146892,RIBA Enterprises Limited,R4701-URB101,Subscriptions,30/09/2016, 684.00 ,
http://statistics.data.gov.uk/id/local-authority-district/23UB,Cheltenham Borough Council,Printing Services,14047197,100622406,Ricoh UK Limited,R4305-SUP022,Photocopier Charges - Usage,16/09/2016," 12,319.04 ",
http://statistics.data.gov.uk/id/local-authority-district/23UB,Cheltenham Borough Council,Printing Services,14047576,100630310,Ricoh UK Limited,R4304-SUP022,Photocopier Operating Lease,30/09/2016, 897.77 ,
http://statistics.data.gov.uk/id/local-authority-district/23UB,Cheltenham Borough Council,Council Tax Collection,14047246,9052770393,Royal Mail,R4521-LTC001,Postages - franking machine,16/09/2016, 621.90 ,
http://statistics.data.gov.uk/id/local-authority-district/23UB,Cheltenham Borough Council,Council Tax Collection,14047666,9052814629,Royal Mail,R4521-LTC001,Postages - franking machine,23/09/2016, 633.24 ,
http://statistics.data.gov.uk/id/local-authority-district/23UB,Cheltenham Borough Council,Council Tax Collection,14047665,9052858270,Royal Mail,R4521-LTC001,Postages - franking machine,23/09/2016, 932.51 ,
http://statistics.data.gov.uk/id/local-authority-district/23UB,Cheltenham Borough Council,Registration of Electors,14047652,9052883366,Royal Mail,R4520-ELE001,Postages - stamps,23/09/2016," 1,169.60 ",
http://statistics.data.gov.uk/id/local-authority-district/23UB,Cheltenham Borough Council,Council Tax Collection,14047802,9052898196,Royal Mail,R4521-LTC001,Postages - franking machine,30/09/2016, 555.78 ,
http://statistics.data.gov.uk/id/local-authority-district/23UB,Cheltenham Borough Council,Registration of Electors,14047667,9052924782,Royal Mail,R4520-ELE001,Postages - stamps,23/09/2016," 2,602.56 ",
http://statistics.data.gov.uk/id/local-authority-district/23UB,Cheltenham Borough Council,Council Tax Collection,14047801,9052947430,Royal Mail,R4521-LTC001,Postages - franking machine,30/09/2016, 505.66 ,
http://statistics.data.gov.uk/id/local-authority-district/23UB,Cheltenham Borough Council,Registration of Electors,14047794,9052971691,Royal Mail,R4520-ELE001,Postages - stamps,30/09/2016," 1,333.12 ",
http://statistics.data.gov.uk/id/local-authority-district/23UB,Cheltenham Borough Council,Sandford Lido car park,14047187,SANDFORD LIDO AUG 16,Sandford Parks Lido (Trading) Limited,R5003-CPK103,TPP - Agency Fees,16/09/2016," 36,062.30 ",
http://statistics.data.gov.uk/id/local-authority-district/23UB,Cheltenham Borough Council,Sandford Lido car park,14047187,SANDFORD LIDO AUG 16,Sandford Parks Lido (Trading) Limited,R5003-CPK103,TPP - Agency Fees,16/09/2016," (1,683.33)",
http://statistics.data.gov.uk/id/local-authority-district/23UB,Cheltenham Borough Council,Repairs and Maintenance,14047198,850,SAS EPC,R2018-HRA100,R & M of Build Voids Energy Performance Certificates,23/09/2016," 1,170.00 ",
http://statistics.data.gov.uk/id/local-authority-district/23UB,Cheltenham Borough Council,Car Park Income Collection,14047813,569771,Security Plus+ Limited,R4435-CPK002,Cash Collection Contract,30/09/2016, 889.63 ,
http://statistics.data.gov.uk/id/local-authority-district/23UB,Cheltenham Borough Council,Community Alarms,14047411,115359/MM,Smile Publishing Limited,R4014-SPP002,Marketing,16/09/2016," 1,050.00 ",
http://statistics.data.gov.uk/id/local-authority-district/23UB,Cheltenham Borough Council,Fire Protection,14047750,12576,Snape Construction Limited,C1107-CAH015,Building Works,30/09/2016," 11,891.30 ",
http://statistics.data.gov.uk/id/local-authority-district/23UB,Cheltenham Borough Council,Fire Protection,14047750,12576,Snape Construction Limited,C1107-CAH015,Building Works,30/09/2016," (11,891.30)",
http://statistics.data.gov.uk/id/local-authority-district/23UB,Cheltenham Borough Council,Fire Protection,14047750,12576,Snape Construction Limited,C1107-CAH015,Building Works,30/09/2016," 11,981.30 ",
http://statistics.data.gov.uk/id/local-authority-district/23UB,Cheltenham Borough Council,Soil Stacks,14047718,15786,Snape Construction Limited,C1107-CAH024,Building Works,30/09/2016," 23,098.53 ",
http://statistics.data.gov.uk/id/local-authority-district/23UB,Cheltenham Borough Council,Soil Stacks,14047718,15786,Snape Construction Limited,C1107-CAH024,Building Works,30/09/2016," 23,098.53 ",
http://statistics.data.gov.uk/id/local-authority-district/23UB,Cheltenham Borough Council,Soil Stacks,14047718,15786,Snape Construction Limited,C1107-CAH024,Building Works,30/09/2016," (23,098.53)",
http://statistics.data.gov.uk/id/local-authority-district/23UB,Cheltenham Borough Council,Bulking Facility,14047392,117747,South Wales Wood Recycling Ltd,R5005-RYC008,TPP - Minor Contract Fees,16/09/2016," 1,832.60 ",
http://statistics.data.gov.uk/id/local-authority-district/23UB,Cheltenham Borough Council,Bulking Facility,14047391,117795,South Wales Wood Recycling Ltd,R5005-RYC008,TPP - Minor Contract Fees,16/09/2016," 2,623.50 ",
http://statistics.data.gov.uk/id/local-authority-district/23UB,Cheltenham Borough Council,Bulking Facility,14047387,117854,South Wales Wood Recycling Ltd,R5005-RYC008,TPP - Minor Contract Fees,16/09/2016," 2,549.80 ",
http://statistics.data.gov.uk/id/local-authority-district/23UB,Cheltenham Borough Council,Bulking Facility,14047388,117912,South Wales Wood Recycling Ltd,R5005-RYC008,TPP - Minor Contract Fees,16/09/2016," 1,618.10 ",
http://statistics.data.gov.uk/id/local-authority-district/23UB,Cheltenham Borough Council,Bulking Facility,14047385,117959,South Wales Wood Recycling Ltd,R5005-RYC008,TPP - Minor Contract Fees,16/09/2016, 825.00 ,
http://statistics.data.gov.uk/id/local-authority-district/23UB,Cheltenham Borough Council,Bulking Facility,14047808,117995,South Wales Wood Recycling Ltd,R5005-RYC008,TPP - Minor Contract Fees,30/09/2016," 1,603.80 ",
http://statistics.data.gov.uk/id/local-authority-district/23UB,Cheltenham Borough Council,Bulking Facility,14047809,118036,South Wales Wood Recycling Ltd,R5005-RYC008,TPP - Minor Contract Fees,30/09/2016," 1,764.40 ",
http://statistics.data.gov.uk/id/local-authority-district/23UB,Cheltenham Borough Council,Bulking Facility,14047807,118095,South Wales Wood Recycling Ltd,R5005-RYC008,TPP - Minor Contract Fees,30/09/2016," 1,658.80 ",
http://statistics.data.gov.uk/id/local-authority-district/23UB,Cheltenham Borough Council,"Cemetery, Crematorium and Churchyards",14047474,SI-2062092,Spaldings Limited,R4000-CCM001,Equipment Purchase,23/09/2016," 1,829.60 ",
http://statistics.data.gov.uk/id/local-authority-district/23UB,Cheltenham Borough Council,Printing Services,14047697,367366,Springfield Business Papers Limited,R4306-SUP022,Photocopier Charges - Consumables,23/09/2016," 1,045.00 ",
http://statistics.data.gov.uk/id/local-authority-district/23UB,Cheltenham Borough Council,Disabled Facility Grants,14047297,64 MENDIP ROAD,Stannah Lift Services Limited,C5000-CAP221,Grants,16/09/2016, 845.43 ,
http://statistics.data.gov.uk/id/local-authority-district/23UB,Cheltenham Borough Council,Parks & Gardens Operations,14047573,3676,Subsidence Management Limited,R4964-OPS001,Insurance Excess,23/09/2016," 1,850.00 ",
http://statistics.data.gov.uk/id/local-authority-district/23UB,Cheltenham Borough Council,Property Services,14047758,6046,System Six Design & Build,R2085-SUP025,R&M of Fix & Fit - Internal,30/09/2016, 831.60 ,
http://statistics.data.gov.uk/id/local-authority-district/23UB,Cheltenham Borough Council,Disabled Facility Grants,14047930,54 townsend street,T P G Disable Aids Limited (TPG),C5000-CAP221,Grants,30/09/2016," 1,901.00 ",
http://statistics.data.gov.uk/id/local-authority-district/23UB,Cheltenham Borough Council,Building Control - Fee Earning Work,14047471,DEBT104980,Tewkesbury Borough Council,R4401-BUC001,Services - Fees and Charges,16/09/2016," 1,729.88 ",
http://statistics.data.gov.uk/id/local-authority-district/23UB,Cheltenham Borough Council,Supervision and Management,14047404,DEBT104981,Tewkesbury Borough Council,R4420-HRA110,Legal Expenses And Court Costs,16/09/2016," 5,713.00 ",
http://statistics.data.gov.uk/id/local-authority-district/23UB,Cheltenham Borough Council,Joint Core Strategy,14047472,DEBT104982,Tewkesbury Borough Council,R4400-PLP101,Services - Professional Fees,16/09/2016," 5,000.00 ",
http://statistics.data.gov.uk/id/local-authority-district/23UB,Cheltenham Borough Council,Legal,14047473,DEBT104983,Tewkesbury Borough Council,R4400-SUP004,Services - Professional Fees,16/09/2016," 120,474.89 ",
http://statistics.data.gov.uk/id/local-authority-district/23UB,Cheltenham Borough Council,Joint Core Strategy,14047662,DEBT105011,Tewkesbury Borough Council,R4401-PLP101,Services - Fees and Charges,30/09/2016," 7,875.00 ",
http://statistics.data.gov.uk/id/local-authority-district/23UB,Cheltenham Borough Council,Cultural - Service Management and Support Services,14047416,70024607,The Cheltenham Trust,R5001-CSM001,TPP - Major External Contractors,16/09/2016," 63,658.33 ",
http://statistics.data.gov.uk/id/local-authority-district/23UB,Cheltenham Borough Council,Recreation Centre Repairs & Maintenance,14047229,70024616,The Cheltenham Trust,R2007-REC111,R & M of Plant Contracts,16/09/2016," 16,956.24 ",
http://statistics.data.gov.uk/id/local-authority-district/23UB,Cheltenham Borough Council,Cultural - Service Management and Support Services,14047833,70025382,The Cheltenham Trust,R5001-CSM001,TPP - Major External Contractors,30/09/2016," 63,658.33 ",
http://statistics.data.gov.uk/id/local-authority-district/23UB,Cheltenham Borough Council,General Fund Balance Sheet,14047167,8.50028E+11,The Midcounties Co-operative,B6170-BAL100,Short Term Revenue Creditors (incl RIA) - Other entities and individuals,16/09/2016," 2,468.00 ",
http://statistics.data.gov.uk/id/local-authority-district/23UB,Cheltenham Borough Council,Community Welfare Grants,14047440,3116,The Rock,R6280-GBD001,Grants,16/09/2016," 1,046.82 ",
http://statistics.data.gov.uk/id/local-authority-district/23UB,Cheltenham Borough Council,Community Welfare Grants,14047435,3117,The Rock,R6280-GBD001,Grants,23/09/2016," 4,250.27 ",
http://statistics.data.gov.uk/id/local-authority-district/23UB,Cheltenham Borough Council,Community Welfare Grants,14047441,3121,The Rock,R6280-GBD001,Grants,16/09/2016," 2,000.00 ",
http://statistics.data.gov.uk/id/local-authority-district/23UB,Cheltenham Borough Council,Community Welfare Grants,14047436,876.76,The Rock,R6280-GBD001,Grants,16/09/2016," 3,119.00 ",
http://statistics.data.gov.uk/id/local-authority-district/23UB,Cheltenham Borough Council,Disabled Facility Grants,14047276,108 WELCH ROAD,The Surveying Practice - Client Account,C5000-CAP221,Grants,16/09/2016," 30,000.00 ",
http://statistics.data.gov.uk/id/local-authority-district/23UB,Cheltenham Borough Council,Disabled Facility Grants,14047274,14 DORRINGTON WALK,The Surveying Practice - Client Account,C5000-CAP221,Grants,16/09/2016," 6,052.42 ",
http://statistics.data.gov.uk/id/local-authority-district/23UB,Cheltenham Borough Council,Disabled Facility Grants,14047154,37 BODNAM ROAD,The Surveying Practice - Client Account,C5000-CAP221,Grants,02/09/2016," 5,935.16 ",
http://statistics.data.gov.uk/id/local-authority-district/23UB,Cheltenham Borough Council,Adaptations for the Disabled (CBC),14047275,4 MENDIP HOUSE,The Surveying Practice - Client Account,C1107-CAH028,Building Works,16/09/2016," 7,700.83 ",
http://statistics.data.gov.uk/id/local-authority-district/23UB,Cheltenham Borough Council,Adaptations for the Disabled (CBC),14047629,65 ashlands road,The Surveying Practice - Client Account,C1107-CAH028,Building Works,23/09/2016," 10,545.63 ",
http://statistics.data.gov.uk/id/local-authority-district/23UB,Cheltenham Borough Council,Disabled Facility Grants,14047168,FLAT 19 SHAFTSBURY PLACE,The Surveying Practice - Client Account,C5000-CAP221,Grants,09/09/2016," 3,585.45 ",
http://statistics.data.gov.uk/id/local-authority-district/23UB,Cheltenham Borough Council,Supervision and Management,14044853,3IN/10273747,Tunstall Healthcare (UK) Limited,R4000-HRA110,Equipment Purchase,16/09/2016, 772.00 ,
http://statistics.data.gov.uk/id/local-authority-district/23UB,Cheltenham Borough Council,Community Alarms,14047719,3IN/10285062,Tunstall Healthcare (UK) Limited,R4000-SPP002,Equipment Purchase,23/09/2016, 755.00 ,
http://statistics.data.gov.uk/id/local-authority-district/23UB,Cheltenham Borough Council,Household Waste,14047061,60009705,Ubico Limited,R5001-WST001,TPP - Major External Contractors,02/09/2016," 100,482.91 ",
http://statistics.data.gov.uk/id/local-authority-district/23UB,Cheltenham Borough Council,Trade Waste,14047061,60009705,Ubico Limited,R5001-TRW001,TPP - Major External Contractors,02/09/2016," 45,818.00 ",
http://statistics.data.gov.uk/id/local-authority-district/23UB,Cheltenham Borough Council,Recycling Centres,14047061,60009705,Ubico Limited,R5001-RYC004,TPP - Major External Contractors,02/09/2016," 51,821.34 ",
http://statistics.data.gov.uk/id/local-authority-district/23UB,Cheltenham Borough Council,Bring Sites,14047061,60009705,Ubico Limited,R5001-RYC005,TPP - Major External Contractors,02/09/2016," 10,990.08 ",
http://statistics.data.gov.uk/id/local-authority-district/23UB,Cheltenham Borough Council,Recycling Collection Schemes,14047061,60009705,Ubico Limited,R5001-RYC006,TPP - Major External Contractors,02/09/2016," 137,696.67 ",
http://statistics.data.gov.uk/id/local-authority-district/23UB,Cheltenham Borough Council,Green Waste,14047061,60009705,Ubico Limited,R5001-RYC002,TPP - Major External Contractors,02/09/2016," 25,531.33 ",
http://statistics.data.gov.uk/id/local-authority-district/23UB,Cheltenham Borough Council,Parks & Gardens Operations,14047061,60009705,Ubico Limited,R5001-OPS001,TPP - Major External Contractors,02/09/2016," 42,144.00 ",
http://statistics.data.gov.uk/id/local-authority-district/23UB,Cheltenham Borough Council,Highways Agency Verges & Trees,14047061,60009705,Ubico Limited,R5001-ESR001,TPP - Major External Contractors,02/09/2016," 24,161.58 ",
http://statistics.data.gov.uk/id/local-authority-district/23UB,Cheltenham Borough Council,Sports & Open Spaces Operations,14047061,60009705,Ubico Limited,R5001-OPS002,TPP - Major External Contractors,02/09/2016," 49,552.58 ",
http://statistics.data.gov.uk/id/local-authority-district/23UB,Cheltenham Borough Council,Arle Road Nursery Operations,14047061,60009705,Ubico Limited,R5001-OPS101,TPP - Major External Contractors,02/09/2016," 13,836.25 ",
http://statistics.data.gov.uk/id/local-authority-district/23UB,Cheltenham Borough Council,Street Cleaning,14047061,60009705,Ubico Limited,R5001-STC001,TPP - Major External Contractors,02/09/2016," 64,422.00 ",
http://statistics.data.gov.uk/id/local-authority-district/23UB,Cheltenham Borough Council,Car Parks - Off Street Operations,14047061,60009705,Ubico Limited,R5001-CPK001,TPP - Major External Contractors,02/09/2016," 7,300.00 ",
http://statistics.data.gov.uk/id/local-authority-district/23UB,Cheltenham Borough Council,Public Conveniences,14047061,60009705,Ubico Limited,R5001-REG019,TPP - Major External Contractors,02/09/2016," 6,169.17 ",
http://statistics.data.gov.uk/id/local-authority-district/23UB,Cheltenham Borough Council,Supervision and Management,14047061,60009705,Ubico Limited,R2071-HRA110,Open Spaces and Grassed Areas,02/09/2016," 27,554.58 ",
http://statistics.data.gov.uk/id/local-authority-district/23UB,Cheltenham Borough Council,Household Waste,14047819,60010134,Ubico Limited,R5001-WST001,TPP - Major External Contractors,30/09/2016," 100,482.91 ",
http://statistics.data.gov.uk/id/local-authority-district/23UB,Cheltenham Borough Council,Trade Waste,14047819,60010134,Ubico Limited,R5001-TRW001,TPP - Major External Contractors,30/09/2016," 45,818.00 ",
http://statistics.data.gov.uk/id/local-authority-district/23UB,Cheltenham Borough Council,Recycling Centres,14047819,60010134,Ubico Limited,R5001-RYC004,TPP - Major External Contractors,30/09/2016," 51,821.34 ",
http://statistics.data.gov.uk/id/local-authority-district/23UB,Cheltenham Borough Council,Bring Sites,14047819,60010134,Ubico Limited,R5001-RYC005,TPP - Major External Contractors,30/09/2016," 10,990.08 ",
http://statistics.data.gov.uk/id/local-authority-district/23UB,Cheltenham Borough Council,Recycling Collection Schemes,14047819,60010134,Ubico Limited,R5001-RYC006,TPP - Major External Contractors,30/09/2016," 137,696.67 ",
http://statistics.data.gov.uk/id/local-authority-district/23UB,Cheltenham Borough Council,Green Waste,14047819,60010134,Ubico Limited,R5001-RYC002,TPP - Major External Contractors,30/09/2016," 25,531.33 ",
http://statistics.data.gov.uk/id/local-authority-district/23UB,Cheltenham Borough Council,Parks & Gardens Operations,14047819,60010134,Ubico Limited,R5001-OPS001,TPP - Major External Contractors,30/09/2016," 42,144.00 ",
http://statistics.data.gov.uk/id/local-authority-district/23UB,Cheltenham Borough Council,Highways Agency Verges & Trees,14047819,60010134,Ubico Limited,R5001-ESR001,TPP - Major External Contractors,30/09/2016," 24,161.58 ",
http://statistics.data.gov.uk/id/local-authority-district/23UB,Cheltenham Borough Council,Sports & Open Spaces Operations,14047819,60010134,Ubico Limited,R5001-OPS002,TPP - Major External Contractors,30/09/2016," 49,552.58 ",
http://statistics.data.gov.uk/id/local-authority-district/23UB,Cheltenham Borough Council,Arle Road Nursery Operations,14047819,60010134,Ubico Limited,R5001-OPS101,TPP - Major External Contractors,30/09/2016," 13,836.25 ",
http://statistics.data.gov.uk/id/local-authority-district/23UB,Cheltenham Borough Council,Street Cleaning,14047819,60010134,Ubico Limited,R5001-STC001,TPP - Major External Contractors,30/09/2016," 64,422.00 ",
http://statistics.data.gov.uk/id/local-authority-district/23UB,Cheltenham Borough Council,Car Parks - Off Street Operations,14047819,60010134,Ubico Limited,R5001-CPK001,TPP - Major External Contractors,30/09/2016," 7,300.00 ",
http://statistics.data.gov.uk/id/local-authority-district/23UB,Cheltenham Borough Council,Public Conveniences,14047819,60010134,Ubico Limited,R5001-REG019,TPP - Major External Contractors,30/09/2016," 6,169.17 ",
http://statistics.data.gov.uk/id/local-authority-district/23UB,Cheltenham Borough Council,Supervision and Management,14047819,60010134,Ubico Limited,R2071-HRA110,Open Spaces and Grassed Areas,30/09/2016," 27,554.58 ",
http://statistics.data.gov.uk/id/local-authority-district/23UB,Cheltenham Borough Council,Development Control - Applications,14047674,2.5E+13,Valuation Office Agency (VOA),R4400-DEV001,Services - Professional Fees,23/09/2016," 3,839.15 ",
http://statistics.data.gov.uk/id/local-authority-district/23UB,Cheltenham Borough Council,Car Parks - Off Street Operations,14047654,CHL00255,Verrus (UK) Limited (Pay By Phone),R4401-CPK001,Services - Fees and Charges,30/09/2016," 2,595.50 ",
http://statistics.data.gov.uk/id/local-authority-district/23UB,Cheltenham Borough Council,ICT,14047722,290931-102,Virgin Media Business,R4514-SUP005,Comms - Telephone Rental/Service Charges,23/09/2016," 17,365.62 ",
http://statistics.data.gov.uk/id/local-authority-district/23UB,Cheltenham Borough Council,CBH Intercompany Account,14047722,290931-102,Virgin Media Business,R4514-HLD101,Comms - Telephone Rental/Service Charges,23/09/2016," 4,653.68 ",
http://statistics.data.gov.uk/id/local-authority-district/23UB,Cheltenham Borough Council,"Cemetery, Crematorium and Churchyards",14047722,290931-102,Virgin Media Business,R4514-CCM001,Comms - Telephone Rental/Service Charges,23/09/2016," 4,646.70 ",
http://statistics.data.gov.uk/id/local-authority-district/23UB,Cheltenham Borough Council,Supervision and Management,14047030,1306399,West Mercia Energy (WME),R2101-HRA110,Gas,09/09/2016, 523.11 ,
http://statistics.data.gov.uk/id/local-authority-district/23UB,Cheltenham Borough Council,Cakebridge Place development,14047054,9348/C,WNCT Enterprises Limited,C1107-CAH034,Building Works,30/09/2016," 1,060.00 ",
http://statistics.data.gov.uk/id/local-authority-district/23UB,Cheltenham Borough Council,Homelessness,14047170,HOMELESS PREVENTION LOAN DEPOSIT,REDACTED,R6280-HOM001,Grants,09/09/2016, 600.00 ,
http://statistics.data.gov.uk/id/local-authority-district/23UB,Cheltenham Borough Council,Land & Property presale costs,14047155,11581,Dolman Building Surveyors,C1005-CAP401,Surveyors Fees,02/09/2016, 772.50 ,
http://statistics.data.gov.uk/id/local-authority-district/23UB,Cheltenham Borough Council,Twinning Expenses,14047846,REDACTED,REDACTED,R4401-DRM011,Services - Fees and Charges,30/09/2016, 525.00 ,
http://statistics.data.gov.uk/id/local-authority-district/23UB,Cheltenham Borough Council,Rent Control,14047127,REDACTED,REDACTED,R9910-HRA900,Refund of Overpiad Rent,02/09/2016," 1,509.88 ",
http://statistics.data.gov.uk/id/local-authority-district/23UB,Cheltenham Borough Council,Twinning Expenses,14047843,REDACTED,REDACTED,R4401-DRM011,Services - Fees and Charges,30/09/2016, 525.00 ,
http://statistics.data.gov.uk/id/local-authority-district/23UB,Cheltenham Borough Council,Community Welfare Grants,14047438,GRANT CLAIM 2015-16 (SAINT STEPHENS CHURCH),SAINT STEPHEN'S PCC,R6280-GBD001,Grants,16/09/2016," 3,500.00 ",
http://statistics.data.gov.uk/id/local-authority-district/23UB,Cheltenham Borough Council,Homelessness,14047271,REDACTED,REDACTED,R6280-HOM001,Grants,16/09/2016, 600.00 ,
http://statistics.data.gov.uk/id/local-authority-district/23UB,Cheltenham Borough Council,General Fund Balance Sheet,14047270,7002026X,SKATERS CLUB,B6170-BAL100,Short Term Revenue Creditors (incl RIA) - Other entities and individuals,16/09/2016," 1,240.00 ",
http://statistics.data.gov.uk/id/local-authority-district/23UB,Cheltenham Borough Council,Supervision and Management,14047204,ANL36825,TAYLORS ESTATE AGENTS,R4400-HRA110,Services - Professional Fees,23/09/2016," 2,000.00 ",
http://statistics.data.gov.uk/id/local-authority-district/23UB,Cheltenham Borough Council,Economic Development,14047577,1631,THE JETWASHING COMPANY,R2706-ECD001,Cleaning - reactive,30/09/2016," 20,700.00 ",
http://statistics.data.gov.uk/id/local-authority-district/23UB,Cheltenham Borough Council,Internal Improvements,14047624,REDACTED,WESTERN POWER DISTRIBUTION,C1107-CAH004,Building Works,30/09/2016, 738.00 ,
Bank Transactions Data,,,,,,,,,
http://statistics.data.gov.uk/id/local-authority-district/23UB,Cheltenham Borough Council,Cheltenham Municipal Offices,10020205,Bank Transactions,WME - MUNICIPAL OFFICE  JUNE 16,ADB101-R2100,Electricity,14/09/2016," 3,256.74 ",
http://statistics.data.gov.uk/id/local-authority-district/23UB,Cheltenham Borough Council,Cheltenham Municipal Offices,10020205,Bank Transactions,WME - MUNICIPAL OFFICE  MAY 16,ADB101-R2100,Electricity,14/09/2016," 3,312.03 ",
http://statistics.data.gov.uk/id/local-authority-district/23UB,Cheltenham Borough Council,Cheltenham Depot,10020205,Bank Transactions,WME - CENTRAL DEPOT  JUNE 16,ADB103-R2100,Electricity,14/09/2016," 2,075.09 ",
http://statistics.data.gov.uk/id/local-authority-district/23UB,Cheltenham Borough Council,Cheltenham Depot,10020205,Bank Transactions,WME - CENTRAL DEPOT  MAY 16,ADB103-R2100,Electricity,14/09/2016," 2,343.45 ",
http://statistics.data.gov.uk/id/local-authority-district/23UB,Cheltenham Borough Council,Cheltenham Depot,10020191,Bank Transactions,SEVERN TRENT WATER ENVIRONMENTAL MAINTENANCE,ADB103-R2401,Water Services - Metered,30/08/2016, 805.57 ,
http://statistics.data.gov.uk/id/local-authority-district/23UB,Cheltenham Borough Council,Cheltenham Depot,10020308,Bank Transactions,SEVERN TRENT WATER DD ENVIRONMENTAL MAINTENANCE,ADB103-R2401,Water Services - Metered,28/09/2016, 971.27 ,
http://statistics.data.gov.uk/id/local-authority-district/23UB,Cheltenham Borough Council,Cheltenham Depot,10020191,Bank Transactions,SEVERN TRENT WATER ENVIRONMENTAL MAINTENANCE,ADB103-R2402,Sewerage and Environmental Services,30/08/2016," 1,121.40 ",
http://statistics.data.gov.uk/id/local-authority-district/23UB,Cheltenham Borough Council,Cheltenham Depot,10020308,Bank Transactions,SEVERN TRENT WATER DD ENVIRONMENTAL MAINTENANCE,ADB103-R2402,Sewerage and Environmental Services,28/09/2016," 1,241.54 ",
http://statistics.data.gov.uk/id/local-authority-district/23UB,Cheltenham Borough Council,"Cemetery, Crematorium and Churchyards",10020235,Bank Transactions,WEST MERCIA ENERGY DD CEMETERY & CREMATORIUM - JUNE,CCM001-R2101,Gas,16/09/2016," 2,508.52 ",
http://statistics.data.gov.uk/id/local-authority-district/23UB,Cheltenham Borough Council,"Cemetery, Crematorium and Churchyards",10020329,Bank Transactions,SEVERN TRENT WATER-CEMETERY HORSE FAIR STREET,CCM001-R2401,Water Services - Metered,28/09/2016," 1,660.09 ",
http://statistics.data.gov.uk/id/local-authority-district/23UB,Cheltenham Borough Council,Treasury Management,10020326,Bank Transactions,SERVICE CHARGES  208063009,COR006-R4403,Bank Charges,30/09/2016, 751.34 ,
http://statistics.data.gov.uk/id/local-authority-district/23UB,Cheltenham Borough Council,Treasury Management,10020252,Bank Transactions,MISCHON DE - CBC  45813.10,COR006-R4420,Legal Expenses And Court Costs,13/09/2016," 2,667.31 ",
http://statistics.data.gov.uk/id/local-authority-district/23UB,Cheltenham Borough Council,Treasury Management,10020205,Bank Transactions,CARDNET 169118221,COR006-R4428,Services - credit card charges,14/09/2016," 2,260.67 ",
http://statistics.data.gov.uk/id/local-authority-district/23UB,Cheltenham Borough Council,Treasury Management,10020205,Bank Transactions,CARDNET 500200738,COR006-R4428,Services - credit card charges,14/09/2016," 1,831.42 ",
http://statistics.data.gov.uk/id/local-authority-district/23UB,Cheltenham Borough Council,Car Parks - Off Street Operations,10020329,Bank Transactions,SEVERN TRENT WATER- CAR PARK NORTHFIELD TERRACE,CPK001-R2402,Sewerage and Environmental Services,28/09/2016, 669.21 ,
http://statistics.data.gov.uk/id/local-authority-district/23UB,Cheltenham Borough Council,Car Parks - Off Street Operations,10020259,Bank Transactions,S/LINE  J3518756  DDINV  26621172,CPK001-R4428,Services - credit card charges,21/09/2016," 2,677.59 ",
http://statistics.data.gov.uk/id/local-authority-district/23UB,Cheltenham Borough Council,Town Hall Repairs & Maintenance,10020205,Bank Transactions,WME - CHELTENHAM TOWN HALL  MAY 16,CUL112-R2100,Electricity,14/09/2016," 2,923.74 ",
http://statistics.data.gov.uk/id/local-authority-district/23UB,Cheltenham Borough Council,Town Hall Repairs & Maintenance,10020248,Bank Transactions,WME - CHELTENHAM TOWN HALL - JUNE 16,CUL112-R2100,Electricity,20/09/2016," 3,283.97 ",
http://statistics.data.gov.uk/id/local-authority-district/23UB,Cheltenham Borough Council,Town Hall Repairs & Maintenance,10020199,Bank Transactions,TOTAL GAS & POWER REFUND,CUL112-R2101,Gas,09/09/2016," (56,476.37)",
http://statistics.data.gov.uk/id/local-authority-district/23UB,Cheltenham Borough Council,Pittville Pump Room Repairs & Maintenance,10020205,Bank Transactions,WME - PITTVILLE PUMP ROOMS - JUNE 16,CUL113-R2100,Electricity,14/09/2016, 786.04 ,
http://statistics.data.gov.uk/id/local-authority-district/23UB,Cheltenham Borough Council,Pittville Pump Room Repairs & Maintenance,10020205,Bank Transactions,WME - PITTVILLE PUMP ROOMS - MAY 16,CUL113-R2100,Electricity,14/09/2016, 732.83 ,
http://statistics.data.gov.uk/id/local-authority-district/23UB,Cheltenham Borough Council,Art Gallery & Museum Repairs & Maintenance,10020205,Bank Transactions,WME - WILSON ART GALLERY & MUSEUM   JUNE 16,CUL117-R2100,Electricity,14/09/2016," 3,652.59 ",
http://statistics.data.gov.uk/id/local-authority-district/23UB,Cheltenham Borough Council,Art Gallery & Museum Repairs & Maintenance,10020205,Bank Transactions,WME - WILSON ART GALLERY & MUSEUM   MAY 16,CUL117-R2100,Electricity,14/09/2016," 5,271.23 ",
http://statistics.data.gov.uk/id/local-authority-district/23UB,Cheltenham Borough Council,Cheltenham Business Improvement District (BID) Levy,10020141,Bank Transactions,CBID0001 BID LEVY COLLECTED,HLD160-R4974,Reimbursement to other L.A.'s,18/08/2016," 8,471.87 ",
http://statistics.data.gov.uk/id/local-authority-district/23UB,Cheltenham Borough Council,Cheltenham Business Improvement District (BID) Levy,10020142,Bank Transactions,Cheltenham BID Ltd - Faster Payment,HLD160-R4974,Reimbursement to other L.A.'s,07/09/2016," 178,817.60 ",
http://statistics.data.gov.uk/id/local-authority-district/23UB,Cheltenham Borough Council,Supervision and Management,10020249,Bank Transactions,SSE SOUTHERN ELECTRIC  JULY 16,HRA110-R2100,Electricity,08/09/2016," 7,073.38 ",
http://statistics.data.gov.uk/id/local-authority-district/23UB,Cheltenham Borough Council,Supervision and Management,10020247,Bank Transactions,WME - GAS - REFUND COOPERS COURT 310516 - 300616 DUPLICATED PAYMENT,HRA110-R2101,Gas,20/09/2016, (523.11),
http://statistics.data.gov.uk/id/local-authority-district/23UB,Cheltenham Borough Council,Supervision and Management,10020164,Bank Transactions,GLOUCESTERSHIRE CC 1000  20014799990,HRA110-R4420,Legal Expenses And Court Costs,08/09/2016," (7,201.31)",
http://statistics.data.gov.uk/id/local-authority-district/23UB,Cheltenham Borough Council,Council Tax Collection,10020294,Bank Transactions,HB DD BACS,LTC001-R4521,Postages - franking machine,26/09/2016," 1,446,866.76 ",
http://statistics.data.gov.uk/id/local-authority-district/23UB,Cheltenham Borough Council,Sports & Open Spaces Operations,10020329,Bank Transactions,SEVERN TRENT WATER- PITTVILLE PUMP ROOM,OPS002-R2402,Sewerage and Environmental Services,28/09/2016," 1,183.26 ",
http://statistics.data.gov.uk/id/local-authority-district/23UB,Cheltenham Borough Council,Arle Road Nursery Operations,10020192,Bank Transactions,SEVERN TRENT WATER ARLE NURSERY,OPS101-R2401,Water Services - Metered,31/08/2016," 2,162.73 ",
http://statistics.data.gov.uk/id/local-authority-district/23UB,Cheltenham Borough Council,Arle Road Nursery Operations,10020192,Bank Transactions,SEVERN TRENT WATER ARLE NURSERY,OPS101-R2402,Sewerage and Environmental Services,31/08/2016," 1,301.23 ",
http://statistics.data.gov.uk/id/local-authority-district/23UB,Cheltenham Borough Council,Joint Core Strategy,10020302,Bank Transactions,RANDSTAD CPE LTD - CRF 160475 - N.GILMORE,PLP101-R4400,Services - Professional Fees,08/09/2016," (1,834.56)",
http://statistics.data.gov.uk/id/local-authority-district/23UB,Cheltenham Borough Council,Recreation Centre Operations,10020218,Bank Transactions,WME - PRINCE OF WALES STADIUM  MAY 16,REC101-R2100,Electricity,09/09/2016," 1,436.79 ",
http://statistics.data.gov.uk/id/local-authority-district/23UB,Cheltenham Borough Council,Recreation Centre Repairs & Maintenance,10020205,Bank Transactions,WME - LEISURE CENTRE TOMMY TAYLORS LANE - JUNE 16,REC111-R2100,Electricity,14/09/2016," 3,692.88 ",
http://statistics.data.gov.uk/id/local-authority-district/23UB,Cheltenham Borough Council,Recreation Centre Repairs & Maintenance,10020205,Bank Transactions,WME - LEISURE CENTRE TOMMY TAYLORS LANE - MAY 16,REC111-R2100,Electricity,14/09/2016," 3,710.63 ",
http://statistics.data.gov.uk/id/local-authority-district/23UB,Cheltenham Borough Council,Recreation Centre Repairs & Maintenance,10020248,Bank Transactions,WME - LEISURE CENTRE TOMMYS LANE - JUNE 16,REC111-R2100,Electricity,20/09/2016," 2,711.93 ",
http://statistics.data.gov.uk/id/local-authority-district/23UB,Cheltenham Borough Council,Recreation Centre Repairs & Maintenance,10020248,Bank Transactions,WME - LEISURE CENTRE TOMMYS LANE - MAY 16,REC111-R2100,Electricity,20/09/2016," 2,124.28 ",
http://statistics.data.gov.uk/id/local-authority-district/23UB,Cheltenham Borough Council,Recreation Centre Repairs & Maintenance,10020235,Bank Transactions,WEST MERCIA ENERGY DD LEISURE CENTRE - JUNE,REC111-R2101,Gas,16/09/2016," 7,757.63 ",
http://statistics.data.gov.uk/id/local-authority-district/23UB,Cheltenham Borough Council,Recreation Centre Repairs & Maintenance,10020275,Bank Transactions,SEVERN TRENT WATER DD RECREATION CENTRE TOMMY TAYLORS LANE,REC111-R2401,Water Services - Metered,23/09/2016," 3,159.64 ",
http://statistics.data.gov.uk/id/local-authority-district/23UB,Cheltenham Borough Council,Telephones,10020124,Bank Transactions,VIRGIN MEDIA  DD506761601005,SUP006-R4436,CCTV Line Rental,01/09/2016," 1,900.73 ",
http://statistics.data.gov.uk/id/local-authority-district/23UB,Cheltenham Borough Council,Telephones,10020124,Bank Transactions,VIRGIN MEDIA  DD506761601005,SUP006-R4515,Comms - Telephone Call Charges,01/09/2016," 1,389.04 ",
http://statistics.data.gov.uk/id/local-authority-district/23UB,Cheltenham Borough Council,Telephones,10020124,Bank Transactions,VIRGIN MEDIA  DD510828101501,SUP006-R4515,Comms - Telephone Call Charges,01/09/2016, 694.50 ,
Purchase Card Data,,,,,,,,,
http://statistics.data.gov.uk/id/local-authority-district/23UB,Cheltenham Borough Council,Twinning Expenses,10020335,Procurement Cards,BUS CHG CARDS - AUG - REDACTED - ACC VOYAGES,R4401-DRM011,Services - Fees and Charges,30/09/2016," 1,898.71 ",
http://statistics.data.gov.uk/id/local-authority-district/23UB,Cheltenham Borough Council,Council Tax Collection,10020335,Procurement Cards,BUS CHG CARDS - AUG - REDACTED - HM COURTS SERVICE,R4420-LTC001,Legal Expenses And Court Costs,30/09/2016, 954.00 ,
